bitfinex-derivatives/quotes_BTCF0:USTF0_20241231
["timestamp","ask_amount","ask_price","bid_price","bid_amount"]
[1735654815039,0.413031,95857.0,95856.0,0.056231]
[1735654815444,0.3608,95857.0,95856.0,0.056231]
[1735654819246,0.413031,95857.0,95856.0,0.004]
[1735654824448,0.05224,95841.0,95840.0,0.00156488]
[1735654824649,0.41304,95841.0,95840.0,0.00156488]
[1735654826159,0.41304,95841.0,95840.0,0.00656488]
[1735654826456,0.3618,95841.0,95840.0,0.06280488]
[1735654828151,0.3618,95841.0,95840.0,0.06124]
[1735654832362,0.001,95841.0,95840.0,0.06124]
[1735654835272,0.3608,95849.0,95840.0,0.21806674]
[1735654835451,0.3608,95849.0,95848.0,0.052236]
[1735654836663,0.15607793,95857.0,95849.0,0.052235]
[1735654837250,0.15607793,95857.0,95856.0,0.052231]
[1735654837659,0.15607793,95858.0,95857.0,0.052231]
[1735654838259,0.20830793,95858.0,95857.0,0.052231]
[1735654838568,0.052235,95853.0,95852.0,0.052233]
[1735654840162,0.21852739,95858.0,95857.0,0.052231]
[1735654840664,0.06244946,95858.0,95857.0,0.052231]
[1735654841056,0.06244946,95858.0,95852.0,0.002]
[1735654841057,0.01021846,95858.0,95852.0,0.002]
[1735654841370,0.052233,95853.0,95852.0,0.054233]
[1735654842469,0.052231,95857.0,95856.0,0.052231]
[1735654842863,0.29416707,95857.0,95856.0,0.052231]
[1735654843165,0.15653607,95857.0,95856.0,0.052231]
[1735654843764,0.15653607,95857.0,95856.0,0.053231]
[1735654844359,0.3608,95859.0,95858.0,0.05223]
[1735654846365,0.3608,95859.0,95858.0,0.05323]
[1735654847161,0.3608,95859.0,95858.0,0.05523]
[1735654848169,0.3608,95859.0,95858.0,0.05623]
[1735654848870,0.3608,95859.0,95858.0,0.05523]
[1735654850574,0.51733607,95859.0,95858.0,0.05523]
[1735654851473,0.51733607,95859.0,95858.0,0.05623]
[1735654851869,0.3608,95859.0,95858.0,0.05623]
[1735654852263,0.3608,95859.0,95858.0,0.05523]
[1735654853072,0.15643243,95865.0,95858.0,0.05523]
[1735654853266,0.0104966,95869.0,95858.0,0.51102562]
[1735654853462,0.18699925,95872.0,95866.0,0.3608]
[1735654853666,0.21816579,95884.0,95871.0,0.052223]
[1735654853865,0.21816579,95884.0,95883.0,0.052217]
[1735654854359,0.21816579,95884.0,95883.0,0.20836136]
[1735654855171,0.3608,95888.0,95887.0,0.052215]
[1735654856874,0.413014,95888.0,95887.0,0.052215]
[1735654857482,0.422014,95888.0,95887.0,0.053215]
[1735654857969,0.422014,95888.0,95887.0,0.001]
[1735654858177,0.052219,95879.0,95871.0,0.24813749]
[1735654858367,0.3608,95874.0,95873.0,0.052222]
[1735654858569,0.3698,95888.0,95873.0,0.052222]
[1735654858773,0.413019,95880.0,95878.0,0.05222]
[1735654859168,0.413019,95880.0,95870.0,0.46545196]
[1735654859368,0.413019,95880.0,95879.0,0.052219]
[1735654860382,0.3608,95880.0,95879.0,0.052219]
[1735654861282,0.3628,95880.0,95879.0,0.052219]
[1735654862779,0.003,95880.0,95879.0,0.052219]
[1735654869887,0.003,95880.0,95879.0,0.20831647]
[1735654872177,0.003,95880.0,95879.0,0.56911647]
[1735654876991,0.3608,95895.0,95894.0,0.052211]
[1735654877390,0.0912,95909.0,95899.0,0.052208]
[1735654877585,0.0888,95919.0,95899.0,0.052208]
[1735654877790,0.0888,95919.0,95906.0,0.052204]
[1735654878094,0.1712,95919.0,95906.0,0.052204]
[1735654879191,0.3648,95907.0,95906.0,0.052204]
[1735654879901,0.3668,95907.0,95906.0,0.052204]
[1735654883901,0.052209,95897.0,95896.0,0.24813749]
[1735654884102,0.052212,95891.0,95890.0,0.31017186]
[1735654884399,0.052213,95890.0,95889.0,0.03787186]
[1735654884698,0.3608,95895.0,95866.0,0.96715068]
[1735654884887,0.413026,95867.0,95866.0,0.96715068]
[1735654885996,0.413026,95867.0,95866.0,0.97415068]
[1735654886398,0.413026,95867.0,95866.0,0.009]
[1735654886886,0.42126092,95867.0,95866.0,0.009]
[1735654887087,0.72126092,95867.0,95843.0,0.052239]
[1735654887302,0.72126092,95867.0,95829.0,0.3608]
[1735654887303,0.052239,95842.0,95831.0,0.0873]
[1735654887498,0.10465196,95840.0,95837.0,0.052242]
[1735654887705,0.052248,95827.0,95824.0,0.052249]
[1735654888001,0.3608,95825.0,95824.0,0.052249]
[1735654889101,0.001,95827.0,95826.0,0.052248]
[1735654890695,0.001,95825.0,95824.0,0.061249]
[1735654891293,0.3608,95830.0,95824.0,0.009]
[1735654891601,0.001,95827.0,95825.0,0.052248]
[1735654891794,0.002,95827.0,95826.0,0.009]
[1735654891996,0.001,95827.0,95826.0,0.009]
[1735654892487,0.3608,95830.0,95825.0,0.052248]
[1735654892689,0.3628,95830.0,95829.0,0.052246]
[1735654893293,0.3618,95830.0,95829.0,0.052246]
[1735654893903,0.414046,95830.0,95829.0,0.052246]
[1735654894103,0.413046,95830.0,95829.0,0.052246]
[1735654895497,0.3608,95830.0,95829.0,0.052246]
[1735654895695,0.3628,95830.0,95829.0,0.059246]
[1735654896702,0.002,95830.0,95829.0,0.059246]
[1735654900105,0.3608,95848.0,95829.0,0.16397587]
[1735654900296,0.3608,95848.0,95847.0,0.052236]
[1735654900493,0.36727505,95848.0,95847.0,0.052236]
[1735654901408,0.36827505,95848.0,95847.0,0.052236]
[1735654901999,0.36927505,95848.0,95847.0,0.052236]
[1735654902504,0.3628,95848.0,95847.0,0.052236]
[1735654902705,0.3618,95848.0,95847.0,0.052236]
[1735654902906,0.3618,95848.0,95847.0,0.055236]
[1735654905611,0.001,95848.0,95847.0,0.055236]
[1735654913214,0.414036,95848.0,95847.0,0.003]
[1735654920417,0.052237,95847.0,95837.0,0.052242]
[1735654920617,0.413042,95838.0,95837.0,0.052242]
[1735654921015,0.052245,95833.0,95832.0,0.052243]
[1735654922220,0.053245,95833.0,95832.0,0.052243]
[1735654922420,0.001,95833.0,95832.0,0.052243]
[1735654922818,0.00764761,95833.0,95832.0,0.052243]
[1735654923421,0.00864761,95833.0,95832.0,0.058243]
[1735654924721,0.002,95833.0,95832.0,0.058243]
[1735654925227,0.002,95833.0,95832.0,0.419043]
[1735654925430,0.09581939,95833.0,95832.0,0.419043]
[1735654926128,0.15636009,95845.0,95832.0,0.419043]
[1735654926129,0.15636009,95845.0,95844.0,0.052238]
[1735654926524,0.15636009,95846.0,95838.0,0.052241]
[1735654926830,0.15636009,95846.0,95845.0,0.052238]
[1735654928040,0.15736009,95846.0,95845.0,0.052238]
[1735654928256,0.001,95846.0,95845.0,0.052238]
[1735654928942,0.001,95846.0,95845.0,0.056238]
[1735654932228,0.053237,95846.0,95845.0,0.004]
[1735654934028,0.10404397,95846.0,95845.0,0.004]
[1735654935531,0.05180697,95846.0,95845.0,0.056238]
[1735654935837,0.001,95846.0,95845.0,0.056238]
[1735654939641,0.00156542,95853.0,95845.0,0.056238]
[1735654939834,0.1563943,95859.0,95845.0,0.056238]
[1735654939835,0.1563943,95859.0,95858.0,0.05223]
[1735654940028,0.0187943,95859.0,95858.0,0.05223]
[1735654941640,0.00642838,95868.0,95867.0,0.052226]
[1735654941839,0.052224,95870.0,95867.0,0.052226]
[1735654942040,0.3608,95874.0,95873.0,0.052222]
[1735654943141,0.18696314,95878.0,95877.0,0.05222]
[1735654944045,0.052221,95877.0,95863.0,0.18691126]
[1735654944350,0.052227,95864.0,95863.0,0.18691126]
[1735654945235,0.3608,95867.0,95847.0,0.00156487]
[1735654945236,0.052234,95852.0,95851.0,0.052234]
[1735654946340,0.052231,95858.0,95852.0,0.052234]
[1735654946534,0.052231,95858.0,95857.0,0.052231]
[1735654947145,0.36744186,95866.0,95865.0,0.052227]
[1735654947541,0.41966786,95866.0,95865.0,0.052227]
[1735654950045,0.42066786,95866.0,95865.0,0.052227]
[1735654950445,0.05223,95859.0,95858.0,0.05223]
[1735654951745,0.05223,95859.0,95858.0,0.05623]
[1735654952436,0.05223,95859.0,95858.0,0.05523]
[1735654953249,0.3608,95865.0,95858.0,0.003]
[1735654953449,0.052233,95859.0,95858.0,0.003]
[1735654954243,0.052233,95859.0,95858.0,0.001]
[1735654954543,0.052233,95859.0,95858.0,0.003]
[1735654955257,0.052233,95859.0,95858.0,0.002]
[1735654955544,0.052233,95859.0,95847.0,0.00156487]
[1735654955744,0.41304,95848.0,95847.0,0.00156487]
[1735654955944,0.052245,95838.0,95837.0,0.052246]
[1735654956147,0.413045,95838.0,95837.0,0.052246]
[1735654957050,0.413045,95838.0,95831.0,0.1723]
[1735654957051,0.3608,95838.0,95831.0,0.1723]
[1735654957346,0.052251,95828.0,95827.0,0.052251]
[1735654957561,0.3608,95828.0,95823.0,0.0897]
[1735654957963,0.3608,95828.0,95824.0,0.052253]
[1735654958257,0.3608,95828.0,95827.0,0.052248]
[1735654959765,0.3608,95828.0,95827.0,0.054248]
[1735654959961,0.00787017,95833.0,95827.0,0.002]
[1735654960262,0.052245,95833.0,95832.0,0.052246]
[1735654960457,0.052248,95828.0,95827.0,0.054248]
[1735654961356,0.053248,95828.0,95827.0,0.054248]
[1735654961556,0.414048,95828.0,95827.0,0.054248]
[1735654961757,0.413048,95828.0,95827.0,0.052248]
[1735654962060,0.414048,95828.0,95827.0,0.054248]
[1735654962659,0.414048,95828.0,95827.0,0.052248]
[1735654962861,0.414048,95828.0,95827.0,0.002]
[1735654964257,0.714048,95828.0,95807.0,0.18691126]
[1735654964463,0.3608,95813.0,95796.0,0.18691126]
[1735654964665,0.413065,95797.0,95796.0,0.18691126]
[1735654964862,0.413065,95797.0,95796.0,0.23917626]
[1735654965559,0.3608,95797.0,95796.0,0.23917626]
[1735654965759,0.3608,95797.0,95796.0,0.052265]
[1735654966370,0.3618,95797.0,95796.0,0.061265]
[1735654967266,0.3628,95797.0,95796.0,0.061265]
[1735654967467,0.415065,95797.0,95796.0,0.009]
[1735654967665,0.7236,95797.0,95781.0,0.052273]
[1735654967970,0.052275,95778.0,95777.0,0.1693]
[1735654969668,0.053275,95778.0,95777.0,0.1753]
[1735654969866,0.001,95778.0,95777.0,0.227576]
[1735654970465,0.002,95778.0,95777.0,0.227576]
[1735654970764,0.002,95778.0,95777.0,0.1753]
[1735654970963,0.054275,95778.0,95777.0,0.1753]
[1735654971771,0.054275,95778.0,95777.0,0.006]
[1735654971965,0.054275,95778.0,95754.0,0.317188]
[1735654971966,0.052287,95757.0,95754.0,0.317188]
[1735654972168,0.052288,95755.0,95754.0,0.2649]
[1735654972368,0.052288,95755.0,95754.0,0.0906]
[1735654972669,0.3608,95760.0,95756.0,0.052287]
[1735654973376,0.052286,95759.0,95754.0,0.0906]
[1735654973668,0.052286,95759.0,95757.0,0.052286]
[1735654974474,0.053286,95759.0,95757.0,0.052286]
[1735654974977,0.052287,95757.0,95754.0,0.142888]
[1735654975175,0.052287,95757.0,95756.0,0.052287]
[1735654975969,0.002,95759.0,95758.0,0.052286]
[1735654977070,0.001,95759.0,95758.0,0.052286]
[1735654977576,0.002,95759.0,95758.0,0.052286]
[1735654977778,0.001,95759.0,95758.0,0.052286]
[1735654978670,0.002,95759.0,95758.0,0.052286]
[1735654979175,0.054286,95759.0,95758.0,0.052286]
[1735654980079,0.052288,95756.0,95754.0,0.0906]
[1735654980274,0.413088,95755.0,95754.0,0.0906]
[1735654980477,0.413088,95755.0,95754.0,0.142888]
[1735654980984,0.3608,95755.0,95743.0,0.052294]
[1735654981178,0.10465196,95753.0,95746.0,0.052292]
[1735654981384,0.052292,95747.0,95746.0,0.052292]
[1735654981884,0.36857911,95755.0,95737.0,0.19295196]
[1735654982073,0.00777911,95755.0,95754.0,0.052288]
[1735654982269,0.002,95756.0,95755.0,0.052288]
[1735654982474,0.001,95756.0,95755.0,0.052288]
[1735654982678,0.06143593,95756.0,95755.0,0.052288]
[1735654982878,0.06043593,95756.0,95755.0,0.052288]
[1735654983779,0.06143593,95756.0,95755.0,0.052288]
[1735654984289,0.05228,95770.0,95769.0,0.05228]
[1735654984583,0.3608,95775.0,95774.0,0.052277]
[1735654985779,0.414077,95775.0,95774.0,0.052277]
[1735654986481,0.42210076,95775.0,95774.0,0.053277]
[1735654988692,0.36982376,95775.0,95774.0,0.053277]
[1735654990397,0.001,95775.0,95774.0,0.053277]
[1735654991785,0.3608,95779.0,95774.0,0.053277]
[1735654991984,0.3608,95779.0,95778.0,0.052275]
[1735654993092,0.3618,95779.0,95778.0,0.052275]
[1735654993484,0.3618,95779.0,95778.0,0.053275]
[1735654994393,0.3618,95779.0,95778.0,0.052275]
[1735654994593,0.3628,95779.0,95778.0,0.053275]
[1735654994886,0.415075,95779.0,95778.0,0.001]
[1735654995683,0.414075,95779.0,95778.0,0.001]
[1735654996200,0.413075,95779.0,95774.0,0.18691126]
[1735654996491,0.052277,95775.0,95774.0,0.18691126]
[1735654996995,0.415355,95779.0,95778.0,0.001]
[1735654997187,0.414075,95779.0,95778.0,0.001]
[1735654997387,0.414075,95779.0,95765.0,0.052282]
[1735654997581,0.052282,95766.0,95765.0,0.052282]
[1735655000291,0.052282,95766.0,95765.0,0.24019326]
[1735655000487,0.053282,95766.0,95765.0,0.24019326]
[1735655000688,0.053282,95766.0,95765.0,0.18791126]
[1735655001399,0.06127532,95766.0,95765.0,0.18791126]
[1735655002996,0.06127532,95766.0,95765.0,0.001]
[1735655003797,0.42207532,95766.0,95765.0,0.001]
[1735655004003,0.052286,95759.0,95758.0,0.24903048]
[1735655004497,0.05229,95751.0,95745.0,0.052293]
[1735655004801,0.05229,95751.0,95749.0,0.05229]
[1735655005989,0.05229,95750.0,95749.0,0.05229]
[1735655006397,0.052292,95747.0,95746.0,0.24985584]
[1735655006991,0.413092,95747.0,95746.0,0.24985584]
[1735655007200,0.052295,95742.0,95741.0,0.24985584]
[1735655008495,0.001,95742.0,95739.0,0.0831]
[1735655008704,0.052296,95740.0,95739.0,0.0831]
[1735655009800,0.001,95740.0,95737.0,0.24985584]
[1735655010101,0.052303,95727.0,95726.0,0.31172221]
[1735655010403,0.413103,95727.0,95726.0,0.31172221]
[1735655010900,0.3608,95727.0,95726.0,0.31172221]
[1735655011595,0.3608,95738.0,95726.0,0.31172221]
[1735655011797,0.3608,95738.0,95737.0,0.052298]
[1735655011998,0.36940768,95738.0,95737.0,0.052298]
[1735655012204,0.002,95740.0,95739.0,0.052296]
[1735655012388,0.001,95740.0,95739.0,0.052296]
[1735655012593,0.12501397,95747.0,95741.0,0.052295]
[1735655012789,0.12501397,95747.0,95746.0,0.052293]
[1735655013102,0.15626746,95753.0,95752.0,0.052289]
[1735655013296,0.15626746,95753.0,95752.0,0.413089]
[1735655014000,0.18914945,95758.0,95752.0,0.413089]
[1735655014001,0.00156695,95758.0,95757.0,0.052287]
[1735655015297,0.052279,95772.0,95754.0,0.052288]
[1735655015493,0.3608,95775.0,95752.0,0.3608]
[1735655015694,0.001,95753.0,95752.0,0.418089]
[1735655016291,0.052287,95757.0,95756.0,0.052287]
[1735655016499,0.052288,95754.0,95752.0,0.3608]
[1735655016699,0.001,95758.0,95752.0,0.052289]
[1735655016700,0.052289,95753.0,95752.0,0.052289]
[1735655017095,0.052289,95753.0,95752.0,0.059289]
[1735655017096,0.053289,95753.0,95752.0,0.059289]
[1735655017504,0.053289,95753.0,95752.0,0.007]
[1735655018905,0.052289,95753.0,95737.0,0.00156672]
[1735655019105,0.052289,95753.0,95752.0,0.004]
[1735655019408,0.413089,95753.0,95752.0,0.004]
[1735655020200,0.052297,95739.0,95737.0,0.00156672]
[1735655020406,0.052297,95738.0,95737.0,0.00156672]
[1735655020604,0.052297,95738.0,95737.0,0.05386472]
[1735655021097,0.3608,95742.0,95737.0,0.00156672]
[1735655021298,0.3608,95742.0,95741.0,0.052295]
[1735655021806,0.052296,95740.0,95737.0,0.00156672]
[1735655022008,0.052297,95738.0,95737.0,0.00156672]
[1735655022503,0.3628,95742.0,95737.0,0.00156672]
[1735655022708,0.415095,95742.0,95738.0,0.052297]
[1735655022909,0.052296,95741.0,95738.0,0.052297]
[1735655023108,0.3628,95742.0,95738.0,0.052297]
[1735655023407,0.052296,95739.0,95738.0,0.052297]
[1735655023802,0.052296,95739.0,95738.0,0.053297]
[1735655025414,0.053296,95739.0,95738.0,0.053297]
[1735655026407,0.053296,95739.0,95738.0,0.052297]
[1735655026601,0.053296,95739.0,95738.0,0.053297]
[1735655028720,0.001,95739.0,95738.0,0.053297]
[1735655028915,0.3608,95745.0,95738.0,0.053297]
[1735655029115,0.15626746,95750.0,95738.0,0.053297]
[1735655029313,0.15626746,95750.0,95749.0,0.052291]
[1735655029515,0.15626746,95754.0,95752.0,0.052289]
[1735655031318,0.3608,95766.0,95752.0,0.053289]
[1735655031319,0.3668,95753.0,95752.0,0.053289]
[1735655032014,0.006,95753.0,95752.0,0.053289]
[1735655032916,0.06094645,95766.0,95765.0,0.052282]
[1735655033117,0.15626746,95770.0,95769.0,0.05228]
[1735655033515,0.15626746,95770.0,95769.0,0.41308]
[1735655033815,0.1875825,95777.0,95769.0,0.92308]
[1735655034009,0.1875825,95777.0,95776.0,0.052276]
[1735655034210,0.36208,95802.0,95776.0,0.052276]
[1735655034417,0.21812366,95807.0,95791.0,0.413068]
[1735655034612,0.21812366,95807.0,95805.0,0.05226]
[1735655035817,0.21812366,95807.0,95805.0,0.06109481]
[1735655036020,0.25085016,95816.0,95815.0,0.052255]
[1735655036324,0.136843,95837.0,95835.0,0.052244]
[1735655037712,0.3648,95836.0,95835.0,0.052244]
[1735655037912,0.004,95836.0,95835.0,0.052244]
[1735655038519,0.01664998,95836.0,95835.0,0.052244]
[1735655039417,0.01264998,95836.0,95835.0,0.052244]
[1735655039618,0.01764998,95836.0,95835.0,0.052244]
[1735655040816,0.009,95836.0,95835.0,0.052244]
[1735655044113,0.00898987,95837.0,95835.0,0.052244]
[1735655044312,0.413038,95846.0,95826.0,0.15690096]
[1735655044512,0.413038,95846.0,95842.0,0.05224]
[1735655044927,0.3608,95846.0,95845.0,0.052238]
[1735655045226,0.00906965,95846.0,95845.0,0.052238]
[1735655045426,0.2653,95855.0,95845.0,0.052238]
[1735655045625,0.2653,95855.0,95854.0,0.052234]
[1735655045821,0.00868584,95855.0,95854.0,0.052234]
[1735655046022,0.3608,95877.0,95866.0,0.052227]
[1735655046718,0.00897658,95870.0,95866.0,0.052227]
[1735655046914,0.00897658,95870.0,95869.0,0.052225]
[1735655047114,0.3608,95877.0,95866.0,0.052227]
[1735655047115,0.3608,95877.0,95876.0,0.052222]
[1735655048725,0.3678,95877.0,95876.0,0.052222]
[1735655048928,0.3768,95877.0,95876.0,0.053222]
[1735655049428,0.3678,95877.0,95876.0,0.052222]
[1735655049617,0.3748,95877.0,95864.0,0.3608]
[1735655049818,0.3748,95877.0,95853.0,0.3608]
[1735655050016,0.3608,95869.0,95861.0,0.052229]
[1735655050216,0.3608,95869.0,95853.0,0.3608]
[1735655050828,0.3608,95869.0,95854.0,0.052233]
[1735655051030,0.3608,95869.0,95847.0,0.3608]
[1735655051031,0.3608,95861.0,95847.0,0.3608]
[1735655051327,0.3608,95861.0,95827.0,0.3644]
[1735655051328,0.052236,95850.0,95841.0,0.052241]
[1735655051528,0.15688796,95850.0,95841.0,0.052241]
[1735655051728,0.15688796,95850.0,95827.0,0.3608]
[1735655051934,0.15688796,95850.0,95842.0,0.05224]
[1735655052126,0.15688796,95850.0,95845.0,0.052238]
[1735655052427,0.052236,95850.0,95846.0,0.052238]
[1735655052630,0.05224,95842.0,95841.0,0.009]
[1735655052829,0.41304,95842.0,95841.0,0.009]
[1735655053132,0.41304,95842.0,95833.0,0.052245]
[1735655053921,0.052241,95841.0,95833.0,0.052245]
[1735655054121,0.052241,95841.0,95835.0,0.05380819]
[1735655054317,0.3628,95842.0,95835.0,0.00156519]
[1735655054523,0.002,95842.0,95841.0,0.052241]
[1735655055134,0.001,95842.0,95841.0,0.052241]
[1735655055633,0.00870776,95851.0,95841.0,0.052241]
[1735655055823,0.052232,95857.0,95850.0,0.052236]
[1735655056018,0.052232,95857.0,95851.0,0.052235]
[1735655056331,0.001,95842.0,95841.0,0.061241]
[1735655057021,0.052236,95850.0,95843.0,0.052239]
[1735655057731,0.052236,95850.0,95844.0,0.052239]
[1735655058132,0.052236,95849.0,95844.0,0.052239]
[1735655058741,0.001,95842.0,95841.0,0.009]
[1735655058933,0.001,95842.0,95841.0,0.061241]
[1735655059336,0.052238,95845.0,95841.0,0.052241]
[1735655059521,0.052238,95845.0,95844.0,0.008]
[1735655059725,0.001,95849.0,95844.0,0.008]
[1735655059925,0.052236,95850.0,95846.0,0.052238]
[1735655060126,0.001,95842.0,95841.0,0.061241]
[1735655061822,0.052236,95850.0,95845.0,0.052238]
[1735655062433,0.052237,95849.0,95845.0,0.052238]
[1735655063232,0.052237,95849.0,95841.0,0.004]
[1735655063538,0.052237,95849.0,95848.0,0.052237]
[1735655063727,0.053237,95849.0,95848.0,0.052237]
[1735655064333,0.052237,95849.0,95848.0,0.052237]
[1735655064833,0.00890443,95850.0,95849.0,0.052236]
[1735655065032,0.00156537,95862.0,95848.0,0.40383049]
[1735655065238,0.052232,95857.0,95855.0,0.052233]
[1735655065537,0.052232,95857.0,95856.0,0.052232]
[1735655066437,0.01048044,95862.0,95850.0,0.052236]
[1735655066638,0.004,95857.0,95851.0,0.052235]
[1735655066937,0.004,95857.0,95856.0,0.45606249]
[1735655067726,0.057232,95857.0,95856.0,0.40383049]
[1735655068831,0.053232,95857.0,95856.0,0.40383049]
[1735655069535,0.054232,95857.0,95856.0,0.40383049]
[1735655069734,0.002,95857.0,95856.0,0.45606249]
[1735655070039,0.3608,95874.0,95856.0,0.40383049]
[1735655070336,0.3608,95874.0,95873.0,0.052223]
[1735655070935,0.052221,95878.0,95874.0,0.052223]
[1735655071433,0.3608,95883.0,95882.0,0.052218]
[1735655071637,0.052214,95890.0,95885.0,0.052216]
[1735655071835,0.052214,95890.0,95875.0,0.76463049]
[1735655072030,0.052214,95890.0,95886.0,0.052216]
[1735655072535,0.53728,95894.0,95887.0,0.052215]
[1735655072839,0.052213,95892.0,95888.0,0.31051249]
[1735655073022,0.002,95890.0,95888.0,0.31051249]
[1735655073227,0.002,95890.0,95888.0,0.36272749]
[1735655073538,0.007,95890.0,95888.0,0.36272749]
[1735655074035,0.059214,95890.0,95889.0,0.40383049]
[1735655074236,0.060214,95890.0,95889.0,0.40383049]
[1735655074729,0.060214,95890.0,95883.0,0.37277623]
[1735655074730,0.052217,95884.0,95883.0,0.37277623]
[1735655074927,0.365214,95890.0,95883.0,0.28238563]
[1735655075127,0.38554044,95890.0,95883.0,0.00378563]
[1735655075531,0.38554044,95890.0,95877.0,0.37277623]
[1735655075532,0.413017,95884.0,95877.0,0.37277623]
[1735655075733,0.052225,95869.0,95868.0,0.36579456]
[1735655077339,0.053225,95869.0,95868.0,0.001]
[1735655077532,0.06258931,95869.0,95868.0,0.001]
[1735655083530,0.06158931,95869.0,95868.0,0.001]
[1735655083737,0.05223,95863.0,95860.0,0.51]
[1735655084047,0.05223,95862.0,95860.0,0.51]
[1735655084345,0.052228,95866.0,95860.0,0.562231]
[1735655085144,0.01036431,95869.0,95860.0,0.562231]
[1735655085347,0.052229,95865.0,95860.0,0.562231]
[1735655085841,0.001,95869.0,95860.0,0.562231]
[1735655086048,0.052229,95864.0,95860.0,0.563231]
[1735655086643,0.001,95869.0,95860.0,0.563231]
[1735655086848,0.001,95869.0,95860.0,0.511]
[1735655087040,0.413031,95861.0,95860.0,0.001]
[1735655087348,0.052232,95859.0,95858.0,0.089]
[1735655089943,0.054232,95859.0,95858.0,0.089]
[1735655090341,0.055232,95859.0,95858.0,0.089]
[1735655091647,0.003,95859.0,95858.0,0.141232]
[1735655092337,0.01219654,95859.0,95858.0,0.651232]
[1735655093049,0.1561001,95862.0,95858.0,0.601]
[1735655093249,0.16553985,95862.0,95861.0,0.052231]
[1735655093943,0.00943975,95862.0,95861.0,0.052231]
[1735655094137,0.5169001,95870.0,95859.0,0.1796]
[1735655094338,0.052228,95866.0,95864.0,0.052229]
[1735655095643,0.054228,95866.0,95864.0,0.052229]
[1735655096050,0.055228,95866.0,95864.0,0.052229]
[1735655096263,0.05223,95863.0,95860.0,0.052231]
[1735655096952,0.05223,95863.0,95862.0,0.05223]
[1735655097344,0.003,95866.0,95865.0,0.052228]
[1735655098050,0.001,95866.0,95860.0,0.052231]
[1735655098249,0.003,95866.0,95860.0,0.052231]
[1735655098452,0.052231,95861.0,95860.0,0.052231]
[1735655099746,0.054231,95861.0,95860.0,0.052231]
[1735655100051,0.055231,95861.0,95860.0,0.052231]
[1735655100359,0.003,95861.0,95858.0,0.4504]
[1735655100651,0.052232,95859.0,95858.0,0.4498]
[1735655101551,0.003,95861.0,95860.0,0.052231]
[1735655101852,0.1561001,95868.0,95862.0,0.05223]
[1735655101853,0.052228,95867.0,95862.0,0.05223]
[1735655102042,0.052232,95859.0,95858.0,0.45036]
[1735655102245,0.052232,95859.0,95858.0,0.4498]
[1735655102449,0.055232,95859.0,95858.0,0.4498]
[1735655102849,0.416032,95859.0,95858.0,0.089]
[1735655103149,0.414032,95859.0,95858.0,0.089]
[1735655103548,0.417032,95859.0,95858.0,0.089]
[1735655104046,0.414032,95859.0,95858.0,0.089]
[1735655104247,0.417032,95859.0,95858.0,0.089]
[1735655104858,0.418032,95859.0,95858.0,0.089]
[1735655106655,0.42732537,95859.0,95858.0,0.089]
[1735655107255,0.61520668,95859.0,95858.0,0.089]
[1735655107758,0.20217468,95859.0,95858.0,0.141232]
[1735655108358,0.19288131,95859.0,95858.0,0.141232]
[1735655108951,0.00941215,95862.0,95858.0,0.089]
[1735655109154,0.21854015,95879.0,95860.0,0.7252]
[1735655109356,0.21854015,95879.0,95878.0,0.413021]
[1735655109767,0.21854015,95879.0,95878.0,0.502521]
[1735655110958,0.22554015,95879.0,95878.0,0.503521]
[1735655112146,0.00928677,95889.0,95878.0,0.6206]
[1735655112347,0.052212,95895.0,95894.0,0.052213]
[1735655113152,0.01104609,95897.0,95888.0,0.052216]
[1735655113353,0.02105491,95914.0,95913.0,0.052202]
[1735655113553,0.052202,95915.0,95914.0,0.052202]
[1735655113759,0.02092307,95926.0,95910.0,0.3608]
[1735655113951,0.3608,95927.0,95906.0,0.413006]
[1735655114157,0.152196,95925.0,95906.0,0.413006]
[1735655114358,0.152196,95925.0,95909.0,0.052204]
[1735655114359,0.052202,95914.0,95909.0,0.052204]
[1735655114566,0.052203,95912.0,95909.0,0.052204]
[1735655115359,0.052204,95910.0,95906.0,0.3608]
[1735655115560,0.052204,95910.0,95909.0,0.001]
[1735655116857,0.052204,95910.0,95909.0,0.002]
[1735655117173,0.003,95910.0,95909.0,0.002]
[1735655117469,0.3638,95910.0,95909.0,0.002]
[1735655117767,0.3638,95910.0,95884.0,0.136418]
[1735655117768,0.052206,95906.0,95884.0,0.136418]
[1735655117974,0.052216,95888.0,95884.0,0.136418]
[1735655118170,0.3608,95893.0,95884.0,0.0842]
[1735655118470,0.052216,95887.0,95875.0,0.30128931]
[1735655118782,0.052216,95887.0,95877.0,0.052222]
[1735655119068,0.0873,95892.0,95877.0,0.052222]
[1735655119069,0.052219,95883.0,95877.0,0.052222]
[1735655119372,0.10467072,95890.0,95872.0,0.0853]
[1735655119560,0.10467072,95890.0,95884.0,0.052218]
[1735655119756,0.003,95888.0,95884.0,0.052218]
[1735655119959,0.052217,95886.0,95884.0,0.052218]
[1735655120157,0.003,95888.0,95876.0,0.052222]
[1735655120373,0.003,95888.0,95877.0,0.001]
[1735655120374,0.052216,95888.0,95877.0,0.001]
[1735655120566,0.10467072,95890.0,95881.0,0.052219]
[1735655120968,0.003,95888.0,95881.0,0.052219]
[1735655121467,0.003,95887.0,95881.0,0.052219]
[1735655121871,0.052219,95883.0,95881.0,0.052219]
[1735655122071,0.003,95887.0,95885.0,0.052217]
[1735655122265,0.003,95888.0,95887.0,0.052216]
[1735655122573,0.005,95888.0,95887.0,0.052216]